Cogmind - Beta 17 @@@ ROGUE MODE // 2026.07.03 @ 13:16:39 Player: alice_fexa Result: Destroyed by S-27 Virus with Autogun Performance ------------- Evolutions (5) 2500 Regions Visited (10) 2000 Robots Destroyed (111) 555 Value Destroyed (4090) 4090 Prototype IDs (42) 840 Alien Tech Used (0) 0 Bonus (13457) 13457 TOTAL SCORE: 23442 Bonus ------- High Alert Combat Kills 509 Follower Combat Kills 268 Prayed to X0-1V1 5000 Major X0-1V1 Interference 6750 Registered with UFD 300 Met Optimus in HQ 500 Met Data Miner 300 Friendly Fire -170 Cogmind --------- Core Integrity 0/1075 Matter 1000/1000 Energy 1324/1400 System Corruption 0% Temperature Cool (0) Movement Core (100) Ox1 Location -5/Factory Parts ------- > --- POWER (2) -------- (None) > --- PROPULSION (5) --- (None) > --- UTILITY (8) ------ Advanced Melee Analysis Suite > --- WEAPON (3) ------- Thermal Lance > --- INVENTORY (5) ---- Actuator Array EM Shield CPS Tube (2) Centrium Greatsword Peak State ------------ > --- POWER ------------ Light Angular Momentum Engine F-cell Engine > --- PROPULSION ------- Carbon-fiber Leg Carbon-fiber Leg Carbon-fiber Leg Flexi-carbon Leg Flexi-carbon Leg > --- UTILITY ---------- Advanced Heat Sink Advanced Heat Sink Large Storage Unit Seismic Detector Advanced Melee Analysis Suite Heavy Regenerative Plating X0-1V1's Piety Tracker > --- WEAPON ----------- Mass Driver Companion Sword > --- INVENTORY -------- F-cell Engine Cold Fusion Reactor Makeshift Heat Sink Improved Coolant Injector Advanced Melee Analysis Suite Actuator Array EM Shield Improved Trap Extractor Mapping Drone Bay Cooled Plasma Rifle Improved Proton Missile Launcher CPS Tube Centrium Greatsword Thermal Lance [Rating: 96] Favorites ----------- Power Fission Core Engine F-cell Engine Power Core Fission Core Reactor Light Antimatter Reactor Propulsion Flexi-carbon Leg Treads Light Treads Leg Flexi-carbon Leg Wheel Wheel Hover Unit Combat Airjet Utility Large Storage Unit Device X0-1V1's Piety Tracker Storage Large Storage Unit Processor Advanced Melee Analysis Suite Protection Heavy Regenerative Plating Weapon Companion Sword Energy Gun Beam Rifle Energy Cannon Beam Cannon Ballistic Gun Light Assault Rifle Ballistic Cannon Light Cannon Launcher Improved Proton Missile Launcher Impact Weapon Mace Slashing Weapon Companion Sword Piercing Weapon Spear Build | -11 -10 -10 -9 -9 -6 -6 -6 -6 -5 -5 ------- Run | Yrd Mat Sub Rec Scr Fac Low Low Dat Pro Fac Slots Evolved 10 | . . . . . 8 . . . . 2 Power . | . . . . . . . . . . . Propulsion 4 | . . . . . 3 . . . . 1 Utility 6 | . . . . . 5 . . . . 1 Weapon . | . . . . . . . . . . . Parts Attached 117 | 6 5 15 2 10 49 8 4 . 3 15 Power 16 | 1 . 2 . 2 4 3 1 . 1 2 Engine 11 | 1 . 2 . 1 1 3 1 . 1 1 Core 4 | . . . . 1 2 . . . . 1 Reactor 1 | . . . . . 1 . . . . . Propulsion 45 | 2 1 5 1 3 23 2 1 . . 7 Treads 6 | 1 . 4 1 . . . . . . . Leg 27 | . . . . 3 17 2 . . . 5 Wheel 7 | 1 1 1 . . 1 . 1 . . 2 Hover 5 | . . . . . 5 . . . . . Flight . | . . . . . . . . . . . Utility 36 | 1 2 3 1 . 19 3 1 . 1 5 Device 24 | . 1 3 1 . 12 2 . . 1 4 Storage 3 | 1 1 . . . . . 1 . . . Processor 4 | . . . . . 3 . . . . 1 Hackware . | . . . . . . . . . . . Protection 5 | . . . . . 4 1 . . . . Artifact . | . . . . . . . . . . . Weapon 20 | 2 2 5 . 5 3 . 1 . 1 1 Energy Gun . | . . . . . . . . . . . Energy Cannon 1 | . . 1 . . . . . . . . Ballistic Gun 6 | 2 1 1 . 2 . . . . . . Ballistic Cannon 6 | . 1 3 . . . . 1 . 1 . Launcher 2 | . . . . 1 1 . . . . . Special Weapon . | . . . . . . . . . . . Impact Weapon 1 | . . . . . 1 . . . . . Slashing Weapon 2 | . . . . 1 1 . . . . . Piercing Weapon 2 | . . . . 1 . . . . . 1 Special Melee Weapon . | . . . . . . . . . . . Unidentified Prototypes 5 | . . 2 . 1 2 . . . . . Parts Lost 60 | . 1 6 . 7 12 7 2 . 1 24 Power 8 | . . 1 . 1 1 2 . . . 3 Propulsion 23 | . . 2 . 3 5 2 1 . . 10 Utility 20 | . . . . 1 6 3 . . 1 9 Weapon 9 | . 1 3 . 2 . . 1 . . 2 Highest Loss Streak 14 | . 1 3 . 4 3 7 2 . 1 14 To Critical Strikes . | . . . . . . . . . . . Average Backups 13 | 2 9 13 14 14 13 13 13 13 13 13 Power 1 | . 1 . 1 . 1 2 3 3 2 1 Propulsion 1 | 1 2 3 . 1 1 . . . . . Utility 5 | . 1 4 7 5 6 6 6 6 6 6 Weapon 4 | . 4 5 6 5 2 3 3 3 3 3 Tool/Special . | . . . . . . . . . . . Unused Backups 45 | . 1 4 . 13 15 . . . 3 9 Power 5 | . . . . . 2 . . . 1 2 Propulsion 8 | . . . . 1 7 . . . . . Utility 13 | . . . . 3 5 . . . 1 4 Weapon 18 | . 1 4 . 9 1 . . . 1 2 Tool/Special 1 | . . . . . . . . . . 1 Average Slot Usage (%) 91 | . 94 95 100 97 85 86 83 86 87 80 Engine 5 | . 14 11 14 . 2 6 5 6 7 6 Core 3 | . . . . 12 2 . . . . 2 Treads 6 | . 14 15 14 7 . . . . . . Leg 12 | . . . . 11 16 25 23 20 20 20 Wheel 6 | . 14 11 14 8 . . . 6 6 1 Hover 1 | . . . . . 10 . . . . . Device 12 | . 9 4 14 13 17 15 12 13 12 17 Storage 10 | . 14 13 14 13 6 6 6 6 6 4 Processor 2 | . . . . . 5 6 6 6 6 5 Protection 4 | . . . . . 7 10 13 13 13 5 Energy Gun 1 | . . 4 14 1 . . . . . . Ballistic Gun 4 | . 23 8 . 3 1 . . . . . Ballistic Cannon 4 | . 4 18 . . . . 2 6 6 4 Impact Weapon 4 | . . 3 14 13 . . . . . . Slashing Weapon 6 | . . . . 7 11 13 10 6 6 4 Peak Build Rating 96 | 6 9 20 24 40 94 87 84 81 89 96 Average Rating 48 | 4 7 11 17 31 81 82 81 81 83 82 On Entrance 43 | . 6 9 15 24 20 74 84 81 81 89 Avg Prop Armor Cover (%) 12 | 3 11 11 14 15 9 . 8 8 8 9 Naked Turns . | . . . . . . . . . . . Heaviest Build 85 | 13 30 33 31 41 68 71 72 72 84 85 Greatest Support 91 | 20 20 40 10 23 91 70 70 16 16 85 Greatest Overweight (x) 5 | . 2 3 3 3 4 1 4 4 5 5 Average Overweight (x) 1 | . 1 2 3 2 . . . 4 4 1 Largest Inventory Capacity 15 | 8 15 15 15 15 15 15 15 15 15 15 Average Capacity 14 | 7 14 14 15 14 15 15 15 15 15 14 Most Carried 15 | 5 15 15 15 15 15 15 15 14 15 15 Average Carried 13 | 3 9 13 14 14 14 14 14 14 14 14 Final Capacity 15 | 8 15 15 15 15 15 15 15 15 15 5 Final Carried 15 | 5 15 15 15 15 14 15 14 14 15 5 Class Distribution -------------------- 50% | Mutant 22% | Scavenger-Gladiator 10% | Scavenger-Mutant 8% | Gunner Dominant Class ---------------- Mutant | -10/Materials Gunner | -10/Subcaves Mutant | -9/Recycling Mutant | -9/Scraptown Scavenger-Gladiator | -6/Factory Scavenger-Gladiator | -6/Lower Caves Scavenger-Gladiator | -6/Lower Caves Scavenger-Mutant | -6/Data Miner Scavenger-Mutant | -5/Proximity Caves Scavenger-Mutant | -5/Factory Resources | -11 -10 -10 -9 -9 -6 -6 -6 -6 -5 -5 ----------- Run | Yrd Mat Sub Rec Scr Fac Low Low Dat Pro Fac Matter Collected 4055 | 292 165 603 . 660 1220 541 70 . 221 283 Remotely . | . . . . . . . . . . . Salvage Created 5260 | 124 151 206 . 240 2838 448 318 . 155 780 Parts 266 | 8 14 23 . 13 128 32 5 . 9 34 Haulers Intercepted . | . . . . . . . . . . . Recyclers Shooed 1 | 1 . . . . . . . . . . Parts Field Recycled . | . . . . . . . . . . . Retrieved Matter . | . . . . . . . . . . . Parts Self-Destructed 69 | . . 29 . . . 28 4 . 8 . Prevented . | . . . . . . . . . . . Parts Restored . | . . . . . . . . . . . Kills | -11 -10 -10 -9 -9 -6 -6 -6 -6 -5 -5 ------- Run | Yrd Mat Sub Rec Scr Fac Low Low Dat Pro Fac Combat Hostiles Destroyed 88 | . 6 13 . 6 39 6 3 . 2 13 Melee 62 | . . . . 1 37 6 3 . 2 13 Guns 6 | . 3 2 . 1 . . . . . . Cannons 14 | . 3 11 . . . . . . . . AOE 6 | . . . . 4 2 . . . . . Classes Destroyed 24 | 2 3 4 . 4 6 4 . . . 1 Worker 6 | . 2 . . . 4 . . . . . Builder 2 | . . . . . 2 . . . . . Tunneler 3 | 2 . . . . 1 . . . . . Recycler 4 | 1 . . . . 2 . . . . 1 Minesweeper 2 | . . . . . . 1 . . 1 . Mechanic 1 | . . . . . 1 . . . . . Drone 1 | . . . . . 1 . . . . . Turret 2 | . . 2 . . . . . . . . Watcher 3 | . 1 . . . 2 . . . . . Swarmer 24 | . 6 11 . . . . 3 . . 4 Grunt 34 | . . 1 . . 21 3 . . 2 7 Brawler 2 | . . . . . 2 . . . . . Sentry 6 | . . 1 . . 5 . . . . . Specialist 3 | . . . . . . 2 . . . 1 Hunter 5 | . . . . . 5 . . . . . Programmer 2 | . . . . . 2 . . . . . Heavy 1 | . . . . . . . . . . 1 Behemoth 1 | . . . . . . 1 . . . . Subdweller 1 | . . 1 . . . . . . . . Federalist 1 | . . . . 1 . . . . . . Ranger 2 | . . . . 2 . . . . . . Guru 1 | . . . . 1 . . . . . . Scrapper 2 | . . . . 2 . . . . . . Packrat 3 | . . . . . . . 3 . . . Samaritan 1 | . . . . . . 1 . . . . Thug 3 | . . . . . 3 . . . . . Best Kill Streak 9 | 2 3 5 . 5 9 2 3 . 2 4 Combat Bots Only 5 | . 3 4 . 5 5 2 3 . 2 4 Max Kills in Single Turn 3 | 1 1 2 . 2 3 1 1 . 1 1 Gunslinging . | . . . . . . . . . . . Exploded 2 | . . . . 2 1 . . . . . Melee 1 | . . . . 1 1 1 1 . 1 1 Uniques/NPCs Destroyed . | . . . . . . . . . . . Combat | -11 -10 -10 -9 -9 -6 -6 -6 -6 -5 -5 -------- Run | Yrd Mat Sub Rec Scr Fac Low Low Dat Pro Fac Hostile Shots Fired 1212 | . 25 191 . 50 508 106 32 . 9 291 Missed 392 | . 7 62 . 12 185 44 5 . 3 74 Hits 820 | . 18 129 . 38 323 62 27 . 6 217 Melee 6 | . . . . 3 3 . . . . . Projectile 814 | . 18 129 . 35 320 62 27 . 6 217 AOE 3 | . 1 . . . 2 . . . . . Critical Strikes 28 | . . . . 1 11 3 . . . 13 Damage Taken 12136 | . 266 1109 . 679 4756 1156 413 . 111 3646 Core 2051 | . 7 190 . 139 478 100 18 . 33 1086 Absorbed by Shields 610 | . . . . . . . . . . 610 Ignored by Resistances 84 | . . . . . . . . . 18 66 Regen/Repaired (Parts) 3185 | . . . . . 1446 1084 270 . 31 354 Core Remaining (%) 73 | 100 . . . 46 . . . . 75 . Volleys Fired 101 | 8 38 35 . 11 2 . . . 1 6 Largest 3 | 2 2 3 . 1 1 . . . 1 1 Hottest 126 | 40 50 126 . 33 43 . . . 47 47 Shots Fired 207 | 16 71 100 . 11 2 . . . 1 6 Gun 104 | 16 50 34 . 4 . . . . . . Cannon 94 | . 21 66 . . . . . . 1 6 Launcher 9 | . . . . 7 2 . . . . . Special . | . . . . . . . . . . . Kinetic 188 | 16 71 90 . 4 . . . . 1 6 Thermal 10 | . . 10 . . . . . . . . Explosive 7 | . . . . 7 . . . . . . Electromagnetic 2 | . . . . . 2 . . . . . Robot Hit Streak 10 | 6 4 10 . 2 . . . . . . Robot Miss Streak 9 | 2 5 9 . 3 . . . . . . Penetration Max . | . . . . . . . . . . . Secondary Targets . | . . . . . . . . . . . Shots Hit Robots 330 | 11 35 41 . 6 145 21 10 . 10 51 Core Hits 171 | 7 13 23 . 13 82 10 2 . 3 18 Critical Kills 1 | . . . . 1 . . . . . . Critical Parts Destroyed . | . . . . . . . . . . . Critical Strikes 22 | . . 3 . 1 11 2 1 . . 4 Destroy 1 | . . . . 1 . . . . . . Blast 3 | . . 3 . . . . . . . . Sever 8 | . . . . . 5 2 1 . . . Melee Attacks 308 | . . 1 . 7 178 28 17 . 15 62 Thermal 7 | . . . . . . . . . . 7 Impact 1 | . . 1 . . . . . . . . Slashing 300 | . . . . 7 178 28 17 . 15 55 Piercing . | . . . . . . . . . . . Sneak Attacks 18 | . . . . . 10 2 3 . 2 1 Combat Hostiles . | . . . . . . . . . . . Follow-up Attacks 30 | . . . . . 19 4 2 . . 5 Damage Inflicted 13416 | 125 504 872 . 510 7023 1013 513 . 515 2341 Guns 656 | 125 228 290 . 13 . . . . . . Cannons 794 | . 276 518 . . . . . . . . Explosions 995 | . . . . 423 572 . . . . . Melee 10935 | . . 62 . 69 6422 1013 513 . 515 2341 Ramming 36 | . . 2 . 5 29 . . . . . Kinetic 1351 | 125 504 709 . 13 . . . . . . Thermal 560 | . . 99 . . . . . . . 461 Explosive 493 | . . . . 423 70 . . . . . Electromagnetic 502 | . . . . . 502 . . . . . Impact 62 | . . 62 . . . . . . . . Slashing 10412 | . . . . 69 6422 1013 513 . 515 1880 Piercing . | . . . . . . . . . . . Highest Corruption 13 | . 1 13 . 7 6 10 . . . . Average Corruption 4 | . 1 4 . 3 4 9 . . . . Corruption Purged . | . . . . . . . . . . . Corruption Blocked . | . . . . . . . . . . . Effects 62 | . 6 32 . . 15 9 . . . . Message Errors 11 | . . 7 . . 3 1 . . . . Matter Fused 14 | . 2 7 . . 3 2 . . . . Heat Flow Errors 10 | . 1 2 . . 3 4 . . . . Energy Discharges 10 | . 1 4 . . 3 2 . . . . Parts Fused 1 | . . 1 . . . . . . . . Data Loss (minor) 8 | . 1 5 . . 2 . . . . . Data Loss (major) 4 | . . 3 . . 1 . . . . . Misfires 2 | . . 2 . . . . . . . . Misdirections 1 | . . 1 . . . . . . . . Weapon Failures 1 | . 1 . . . . . . . . . Overload Shots . | . . . . . . . . . . . Overflow Damage 886 | . 6 . . 23 446 75 170 . 43 123 Projectiles 6 | . 6 . . . . . . . . . Explosions 53 | . . . . 23 30 . . . . . Melee 827 | . . . . . 416 75 170 . 43 123 Knockbacks 11 | . 2 9 . . . . . . . . Impact 1 | . . 1 . . . . . . . . Kinetic 9 | . 2 7 . . . . . . . . Secondary 1 | . . 1 . . . . . . . . Self-Inflicted Damage 112 | . . . . . 112 . . . . . Shots 4 | . . . . . 4 . . . . . Rammed 2 | . . 1 . 1 . . . . . . Targets Rammed 9 | . . 1 . 3 5 . . . . . Kicked 7 | . . . . 2 5 . . . . . Crushed . | . . . . . . . . . . . Highest Temperature 295 | . 182 228 . . 295 261 . . . 45 Average Temperature 99 | . 80 109 . . 123 122 . . . 23 Received Heat Transfer 2756 | . . 177 . 288 1303 258 . . 54 676 Effects 4 | . . 1 . . 2 1 . . . . Energy Bleed 1 | . . 1 . . . . . . . . Interference 3 | . . . . . 2 1 . . . . Siege Activations . | . . . . . . . . . . . Martial Activations . | . . . . . . . . . . . Shielding Activations . | . . . . . . . . . . . Robots Disrupted 5 | . . . . . 5 . . . . . Combat Hostiles 4 | . . . . . 4 . . . . . Robots Corrupted . | . . . . . . . . . . . Combat Hostiles . | . . . . . . . . . . . Parts Fried . | . . . . . . . . . . . Impact Corruptions . | . . . . . . . . . . . Robots Melted . | . . . . . . . . . . . Combat Hostiles . | . . . . . . . . . . . Parts Melted 7 | . . . . 3 4 . . . . . Heat Transferred 1023 | . . 183 . . . . . . . 840 Parts Sabotaged . | . . . . . . . . . . . Parts Stolen . | . . . . . . . . . . . Parts Stripped . | . . . . . . . . . . . Power Chain Reactions . | . . . . . . . . . . . Alert | -11 -10 -10 -9 -9 -6 -6 -6 -6 -5 -5 ------- Run | Yrd Mat Sub Rec Scr Fac Low Low Dat Pro Fac Maximum Alert Level 3 | . . . . . 3 . . . . 3 Low Security (%) 62 | 100 100 . 100 . 53 . . . . . Level 1 11 | . . . . . 21 . . . . . Level 2 3 | . . . . . 7 . . . . . Level 3 21 | . . . . . 17 . . . . 100 Level 4 . | . . . . . . . . . . . Level 5 . | . . . . . . . . . . . High Security . | . . . . . . . . . . . Max Security . | . . . . . . . . . . . Peak Influence 923 | 10 64 . 52 . 851 . . . . 923 Initial 900 | . . . 52 . . . . . . 900 Average 247 | 1 13 . 27 . 256 . . . . 845 Influence Increases 3659 | 15 167 444 . . 1317 135 130 . 45 1406 Destroy 0b10 Robot/C 1800 | . 120 400 . . 760 120 60 . 40 300 Destroy 0b10 Robot/NC 110 | 15 15 . . . 65 5 . . 5 5 Destroy Leader 236 | . 22 10 . . 134 10 10 . . 50 Allied During Kill 26 | . . 19 . . . . . . . 7 Successful Hack 44 | . 10 . . . 22 . . . . 12 Disable Machine 165 | . . . . . 120 . . . . 45 Destroy Structure 48 | . . . . . 6 . . . . 42 Advance Influence 900 | . . . . . . . . . . 900 Partial Spotted 60 | . . . . . 60 . . . . . Lose Combat Pursuer 270 | . . 15 . . 150 . 60 . . 45 Influence Decreases 2815 | 15 164 337 108 2 494 815 273 . 45 562 Entered New Map 396 | . . 3 58 2 . 305 28 . . . Time Decay 1791 | 15 154 284 50 . 366 440 225 . 35 222 Search Patrol Dispatched 100 | . . . . . . . . . . 100 Lost Part 520 | . 10 50 . . 120 70 20 . 10 240 Purge Threat 8 | . . . . . 8 . . . . . Squads Dispatched 24 | . 1 . . . 16 . . . . 7 Investigation 5 | . . . . . 3 . . . . 2 Extermination 5 | . . . . . 4 . . . . 1 Reinforcement 5 | . 1 . . . 2 . . . . 2 Assault 3 | . . . . . 1 . . . . 2 Garrison 6 | . . . . . 6 . . . . . Intercept . | . . . . . . . . . . . Searches Triggered 1 | . . . . . . . . . . 1 Construction Impeded 1 | . . . . . 1 . . . . . Haulers Reinforced . | . . . . . . . . . . . Active Scanning Responses . | . . . . . . . . . . . Cargo Convoy Interrupts 1 | . . . . . 1 . . . . . Stealth | -11 -10 -10 -9 -9 -6 -6 -6 -6 -5 -5 --------- Run | Yrd Mat Sub Rec Scr Fac Low Low Dat Pro Fac Distress Signals 1 | . . . . . 1 . . . . . Communications Jammed 13 | . . . . . 13 . . . . . Distress Signals . | . . . . . . . . . . . Times Spotted 152 | . 12 29 . 11 55 6 7 . 7 25 Peak Tracking Total 9 | . 3 6 . 4 6 4 4 . 2 9 Tactical Retreats 14 | . . 1 . . 9 . 2 . . 2 Traps | -11 -10 -10 -9 -9 -6 -6 -6 -6 -5 -5 ------- Run | Yrd Mat Sub Rec Scr Fac Low Low Dat Pro Fac Traps Triggered 3 | . . . . . 1 . . . . 2 Indirectly . | . . . . . . . . . . . Trap Hack Attempts . | . . . . . . . . . . . Triggered . | . . . . . . . . . . . Disarmed . | . . . . . . . . . . . Reprogrammed . | . . . . . . . . . . . Reused . | . . . . . . . . . . . Traps Extracted . | . . . . . . . . . . . Installed . | . . . . . . . . . . . Triggered . | . . . . . . . . . . . Most Traps Carried 5 | . . . . . . 4 4 4 5 5 Machines | -11 -10 -10 -9 -9 -6 -6 -6 -6 -5 -5 ---------- Run | Yrd Mat Sub Rec Scr Fac Low Low Dat Pro Fac Machines Disabled 16 | . . 3 . 2 8 . . . . 3 Max in Single Turn 3 | . . 1 . 1 3 . . . . . Garrison Access 1 | . . . . . . . . . . 1 Machines Repaired . | . . . . . . . . . . . Machines Dismantled . | . . . . . . . . . . . Machines Sabotaged . | . . . . . . . . . . . Overloaded Fab Kills . | . . . . . . . . . . . Hacking | -11 -10 -10 -9 -9 -6 -6 -6 -6 -5 -5 --------- Run | Yrd Mat Sub Rec Scr Fac Low Low Dat Pro Fac Machines Accessed 30 | . 8 1 . 6 7 . . 4 . 4 Terminals 10 | . 6 . . . 3 . . . . 1 Fabricators . | . . . . . . . . . . . Repair Stations 1 | . . . . . . . . . . 1 Recycling Units 5 | . 2 . . . 2 . . . . 1 Scanalyzers 2 | . . . . . 1 . . . . 1 Garrison Access 1 | . . . . . 1 . . . . . Total Hacks 116 | . 21 1 . 36 20 . . 30 . 8 Successful 89 | . 11 1 . 36 9 . . 30 . 2 Failed 26 | . 10 . . . 10 . . . . 6 Catastrophic 3 | . . . . . 2 . . . . 1 Database Lockouts 1 | . . . . . 1 . . . . . Manual 27 | . 18 . . . 7 . . . . 2 Terminals 28 | . 17 . . . 10 . . . . 1 Fabricators . | . . . . . . . . . . . Repair Stations 1 | . . . . . . . . . . 1 Recycling Units 12 | . 4 . . . 4 . . . . 4 Scanalyzers 6 | . . . . . 4 . . . . 2 Garrison Access 2 | . . . . . 2 . . . . . Terminal Hacks 72 | . 1 1 . 36 4 . . 30 . . Record 45 | . . . . 34 . . . 11 . . Part Schematic 10 | . . . . . . . . 10 . . Robot Schematic 6 | . . . . . . . . 6 . . Prototype ID Bank 3 | . . . . . . . . 3 . . Open Door 1 | . . . . 1 . . . . . . Terminal Index 1 | . . . . . 1 . . . . . Unreport Threat 1 | . . . . . 1 . . . . . Locate Traps 1 | . 1 . . . . . . . . . Transport Status 1 | . . . . . 1 . . . . . Hauler Manifests 1 | . . . . . 1 . . . . . Proto ID Catalog 2 | . . 1 . 1 . . . . . . Fabricator Hacks . | . . . . . . . . . . . Repair Station Hacks . | . . . . . . . . . . . Recycling Unit Hacks . | . . . . . . . . . . . Scanalyzer 4 | . . . . . 3 . . . . 1 Insert Component 1 | . . . . . 1 . . . . . Retrieve Study 3 | . . . . . 2 . . . . 1 Garrison Access Hacks . | . . . . . . . . . . . Unauthorized Hacks 12 | . 9 . . . 2 . . . . 1 Terminals 11 | . 9 . . . 2 . . . . . Botnet 5 | . 3 . . . 2 . . . . . Skim 6 | . 6 . . . . . . . . . Fabricators . | . . . . . . . . . . . Repair Stations 1 | . . . . . . . . . . 1 Patch 1 | . . . . . . . . . . 1 Recycling Units . | . . . . . . . . . . . Scanalyzers . | . . . . . . . . . . . Garrison Access . | . . . . . . . . . . . Data Cores Recovered . | . . . . . . . . . . . Used . | . . . . . . . . . . . Hacking Detections 15 | . 6 . . . 6 . . . . 3 Full Trace Events 3 | . 1 . . . 1 . . . . 1 Feedback Events 1 | . 1 . . . . . . . . . Corruption 1 | . 1 . . . . . . . . . Feedback Blocked . | . . . . . . . . . . . Robot Schematics Acquired 6 | . . . . . . . . 6 . . Robots Built . | . . . . . . . . . . . Authchips . | . . . . . . . . . . . Time . | . . . . . . . . . . . Total Robot Build Rating . | . . . . . . . . . . . Part Schematics Acquired 10 | . . . . . . . . 10 . . Parts Built . | . . . . . . . . . . . Authchips . | . . . . . . . . . . . Time . | . . . . . . . . . . . Total Part Build Rating . | . . . . . . . . . . . Part Studies Acquired 3 | . . . . . 2 . . . . 1 Parts Repaired . | . . . . . . . . . . . Time . | . . . . . . . . . . . Parts Recycled . | . . . . . . . . . . . Recycled Matter . | . . . . . . . . . . . Retrieved Matter . | . . . . . . . . . . . Retrieved Components . | . . . . . . . . . . . Parts Scanalyzed . | . . . . . . . . . . . Part Schematics Acquired . | . . . . . . . . . . . Parts Damaged . | . . . . . . . . . . . Bothacking | -11 -10 -10 -9 -9 -6 -6 -6 -6 -5 -5 ------------ Run | Yrd Mat Sub Rec Scr Fac Low Low Dat Pro Fac Used RIF Installer . | . . . . . . . . . . . Robots Hacked . | . . . . . . . . . . . Non-combat . | . . . . . . . . . . . Combat . | . . . . . . . . . . . Robot Hacks Applied . | . . . . . . . . . . . Relay Couplers Released 2 | . . . . . . . . . . 2 Machine Destruction 2 | . . . . . . . . . . 2 Fabnet Peak Effective % . | . . . . . . . . . . . Robots Rewired . | . . . . . . . . . . . Allies Hacked . | . . . . . . . . . . . Hacks Repelled . | . . . . . . . . . . . Allies | -11 -10 -10 -9 -9 -6 -6 -6 -6 -5 -5 -------- Run | Yrd Mat Sub Rec Scr Fac Low Low Dat Pro Fac Total Allies 10 | . . 9 . . . . . . . 1 Largest Group 5 | . . 5 4 4 . . . . . 1 Highest-Rated Group 183 | . . 96 76 76 . . . . . 183 Highest-Rated Ally 183 | . . 20 19 19 . . . . . 183 Initial UFD Resources 26 | . . . . . 23 23 23 23 26 26 Total Orders . | . . . . . . . . . . . Ally Attacks 49 | . . 25 . 23 . . . . . 1 Total Damage 1418 | . . 188 . 380 . . . . . 850 Kills 14 | . . 7 . 4 . . . . . 3 Allies Corrupted . | . . . . . . . . . . . Allies Melted . | . . . . . . . . . . . X0-1V1 Amusement Gains 189 | . 9 . . 80 30 . . . 10 60 Good Acts 82 | . . 28 7 1 23 7 4 . 7 5 Bad Acts 61 | . . 39 . . 14 6 . . . 2 Intel | -11 -10 -10 -9 -9 -6 -6 -6 -6 -5 -5 ------- Run | Yrd Mat Sub Rec Scr Fac Low Low Dat Pro Fac Active Infowar (turns) 1429 | . . 6 . . 362 241 469 . . 351 Optics 96 | . . . . . 96 . . . . . Structural 732 | . . . . . 22 241 469 . . . Traps 215 | . . . . . 215 . . . . . Seismic 357 | . . 6 . . . . . . . 351 Jamming 275 | . . . . . 275 . . . . . Robot Analysis Total . | . . . . . . . . . . . Derelict Logs Recovered 8 | . . 2 . 3 . 1 1 . 1 . Drone Launches . | . . . . . . . . . . . Drone Recoveries . | . . . . . . . . . . . Exploration | -11 -10 -10 -9 -9 -6 -6 -6 -6 -5 -5 ------------- Run | Yrd Mat Sub Rec Scr Fac Low Low Dat Pro Fac Turns Passed 11867 | 95 1078 1951 115 3250 2207 1088 829 138 643 473 Spaces Moved 7254 | 42 664 1208 90 2056 1417 591 569 87 332 198 Core 7 | 4 . . . . . . . . . 3 Treads 262 | 33 48 181 . . . . . . . . Legs 2413 | . . . . 484 683 591 497 . . 158 Wheels 3874 | 5 616 1027 90 1572 36 . 72 87 332 37 Hover 698 | . . . . . 698 . . . . . Flight . | . . . . . . . . . . . Fastest Speed 50 | 50 110 110 125 80 68 120 120 160 160 100 Average Speed 127 | 142 119 130 125 136 101 120 137 160 163 142 Slowest Speed 295 | 160 240 240 125 260 295 190 190 160 175 260 Overloaded Moves . | . . . . . . . . . . . Propulsion Burnouts . | . . . . . . . . . . . Robots Hopped . | . . . . . . . . . . . Potential Cave-ins . | . . . . . . . . . . . Cave-ins Triggered . | . . . . . . . . . . . Exploration Rate (%) 51 | 4 91 53 23 89 31 66 78 71 57 6 Regions Visited 10 Branch Regions 7 Pre-discovered Areas 12 | . 3 1 . 6 . . 1 1 . . Known Exits Taken 4 | . . . 1 . 1 1 . . 1 . Unknown Exits Taken 6 | 1 1 1 . 1 . . 1 1 . . Scrap Searched 19 | . . 3 . 7 . 3 5 . 1 . Spaces Dug 25 | . . . . 10 4 . 1 . 4 6 Terrain Destroyed 98 | . . 1 . 78 6 . 1 . 4 8 Melee 11 | . . . . 3 4 . 1 . 2 1 Projectile 10 | . . 1 . . . . . . 2 7 AOE 77 | . . . . 75 2 . . . . . Terrain Rammed . | . . . . . . . . . . . Walls Destroyed . | . . . . . . . . . . . Machines Disabled . | . . . . . . . . . . . Actions | -11 -10 -10 -9 -9 -6 -6 -6 -6 -5 -5 --------- Run | Yrd Mat Sub Rec Scr Fac Low Low Dat Pro Fac Total 9341 | 60 884 1519 92 2481 1973 934 596 86 413 303 Wait 1332 | . 160 225 . 324 257 295 4 . 52 15 Move 7245 | 41 663 1207 89 2056 1416 590 568 86 331 198 Hop . | . . . . . . . . . . . Pick Up 120 | 5 13 16 . 38 34 7 . . 4 3 Fast Attach 64 | 6 2 3 . 5 24 6 5 . 2 11 Attach 44 | . 2 8 1 6 16 6 1 . . 4 Detach 7 | . 1 1 1 1 2 1 . . . . Swap 38 | . 1 7 1 2 18 1 1 . 3 4 Drop 114 | . 4 15 . 29 47 5 4 . 5 5 Fire 101 | 8 38 35 . 11 2 . . . 1 6 Melee 268 | . . 1 . 7 152 23 13 . 15 57 Ram . | . . . . . . . . . . . Kick 7 | . . . . 2 5 . . . . . Crush 1 | . . 1 . . . . . . . . Escape Stasis . | . . . . . . . . . . . Rewire . | . . . . . . . . . . . Trap . | . . . . . . . . . . . Miscellaneous . | . . . . . . . . . . . Route ------- -11/Scrapyard -10/Materials (discovered 5 exits: [*Mat x3] / [*Min] / *Sub) -10/Subcaves (discovered 2 exits: *Mat / [*Rec]) -9/Recycling (discovered 2 exits: Fac / *Scr) -9/Scraptown (discovered 2 exits: *Fac x2) -6/Factory (discovered 6 exits: *Fac x4 / *Low x2) -6/Lower Caves -6/Lower Caves -6/Data Miner -5/Proximity Caves -5/Factory (discovered 2 exits: Fac / Upp) History --------- Turn | Location | Event 29 | -11/Scrapyard | Discovered new exit (range 15) 96 | -11/Scrapyard | Entered Materials 246 | -10/Materials | Discovered new exit (range 13) 302 | -10/Materials | Build established: Mutant 310 | -10/Materials | Discovered new exit (range 3) 533 | -10/Materials | Learned Storage trap positions 558 | -10/Materials | Discovered new exit (range 15) 588 | -10/Materials | Learned location of Subcaves (-10) 596 | -10/Materials | Derelicts attacked the area 631 | -10/Materials | Learned location of Mines (-8) 666 | -10/Materials | Learned Storage stockpile data 688 | -10/Materials | Discovered new exit (range 15) 755 | -10/Materials | Discovered new exit (range 14) 794 | -10/Materials | Learned location of 2 exits from Materials 817 | -10/Materials | Learned Storage emergency access door positions 859 | -10/Materials | Learned location of Mines (-10) 898 | -10/Materials | Learned location of 1 exit from Storage 1168 | -10/Materials | Prayed at D.C.S.S. Altar Unit 1174 | -10/Materials | Entered Subcaves 1175 | -10/Subcaves | Identified exit to Materials 1180 | -10/Subcaves | X0-1V1 mutated your Utility slot to Weapon slot 1185 | -10/Subcaves | Learned location of 1 exit from Materials 1699 | -10/Subcaves | Shifting Twisted Machinery released Battle Cannon 1719 | -10/Subcaves | Heat dissipation permanently improved by X0-1V1 (+15; -75 max core) 1724 | -10/Subcaves | Visited 4L-MR0's lab 1840 | -10/Subcaves | Shifting Twisted Machinery released Mak. Light Armor Plating 1853 | -10/Subcaves | Shifting Twisted Machinery released Scrap Shield 1928 | -10/Subcaves | Learned location of Zion (-7) 1971 | -10/Subcaves | Visited triangular shrine 1979 | -10/Subcaves | Found Prototype Device 2018 | -10/Subcaves | Build established: Gunner 2165 | -10/Subcaves | X0-1V1 sent hostile S-10 Pest (x4) 2322 | -10/Subcaves | Discovered new exit (range 4) 2322 | -10/Subcaves | X0-1V1 sent you into danger 2341 | -10/Subcaves | Core integrity fell below 50% 2366 | -10/Subcaves | Lost 3 parts (2n1w) 2460 | -10/Subcaves | System corruption reached 10% 2462 | -10/Subcaves | Identified V3-11A's Pendant 2493 | -10/Subcaves | X0-1V1 mutated your Weapon slot to Utility slot 2496 | -10/Subcaves | X0-1V1 sent hostile S-10 Pest (x5) 2504 | -10/Subcaves | Core integrity fell below 20% 2521 | -10/Subcaves | X0-1V1 sent allied G-34 Mercenary (x4) 2522 | -10/Subcaves | Core integrity restored by X0-1V1 (+42) 2525 | -10/Subcaves | Core integrity restored by X0-1V1 (+42) 2533 | -10/Subcaves | X0-1V1 activates XOMVISION 2554 | -10/Subcaves | X0-1V1 rewrote G-34 Mercenary IFF filter 2555 | -10/Subcaves | X0-1V1 tapped a No Entrance sign 2576 | -10/Subcaves | X0-1V1 mutated your Propulsion slot to Weapon slot 2583 | -10/Subcaves | Approached by friendly Subdweller 2587 | -10/Subcaves | Core integrity permanently improved by X0-1V1 (+200) 2593 | -10/Subcaves | Melee accuracy permanently improved by X0-1V1 (+5%; -50 max core) 2672 | -10/Subcaves | X0-1V1 rewrote G-34 Mercenary IFF filter 2694 | -10/Subcaves | X0-1V1 mutated your Weapon slot to Propulsion slot 2744 | -10/Subcaves | Shifting Twisted Machinery released Sub. Power Source 2750 | -10/Subcaves | A swath of the cavern ceiling suddenly collapsed 2765 | -10/Subcaves | Build established: Mutant 2871 | -10/Subcaves | X0-1V1 rewrote G-34 Mercenary IFF filter 2907 | -10/Subcaves | Befriended Subdweller 2932 | -10/Subcaves | A Subdweller sparked back to life 2932 | -10/Subcaves | A Subdweller sparked back to life 2932 | -10/Subcaves | A Subdweller sparked back to life 2935 | -10/Subcaves | X0-1V1 turns hostiles against one another 2937 | -10/Subcaves | Befriended Subdweller 2937 | -10/Subcaves | Befriended Subdweller 2941 | -10/Subcaves | X0-1V1 activates XOMVISION 2976 | -10/Subcaves | Found Gun Armor 3125 | -10/Subcaves | Entered Recycling 3125 | -9/Recycling | Accompanied by 4 allies 3127 | -9/Recycling | Identified exit to Scraptown 3127 | -9/Recycling | X0-1V1 revealed exit location to -9/Scraptown 3208 | -9/Recycling | Scanned before Scraplab entrance 3208 | -9/Recycling | Identified exit to Factory 3208 | -9/Recycling | X0-1V1 revealed exit location to -7/Factory 3227 | -9/Recycling | Entered Scraplab 3240 | -9/Recycling | Entered Scraptown 3240 | -9/Scraptown | Accompanied by 4 allies 3457 | -9/Scraptown | Heard Great Nut preacher, LISTEN AND RECITE! 3518 | -9/Scraptown | Scanned Subdweller tech in exchange for log data 3540 | -9/Scraptown | Learned location of 1 exit from Factory 3541 | -9/Scraptown | Learned Research stockpile data 3576 | -9/Scraptown | Visited Cyclists 3596 | -9/Scraptown | Visited Spacefarers 3847 | -9/Scraptown | Visited Awakened 3869 | -9/Scraptown | Visited Red Mages 3902 | -9/Scraptown | Visited The Evicted 3932 | -9/Scraptown | Visited Comm Corps 3950 | -9/Scraptown | Visited SPCMW 3986 | -9/Scraptown | Visited UFD Registry 3986 | -9/Scraptown | Registered with UFD as "Gravforce" 4026 | -9/Scraptown | Visited Cartography Club 4049 | -9/Scraptown | Visited Science Guys 4074 | -9/Scraptown | Visited Sword Containment 4092 | -9/Scraptown | Visited Abandonware Association 4110 | -9/Scraptown | Visited DA-N13 Charitable Foundation 4117 | -9/Scraptown | Found DCF Scrap (28 items) 4167 | -9/Scraptown | Visited Junk Cannon Lab 4268 | -9/Scraptown | Visited Observation Area 4338 | -9/Scraptown | Visited Curators Association 4377 | -9/Scraptown | Visited Scrapoid Pod Storage 4503 | -9/Scraptown | Learned location of Upper Caves (-5) 4503 | -9/Scraptown | Learned location of Proximity Caves (-3) 4503 | -9/Scraptown | Learned location of Archives (-4) 4503 | -9/Scraptown | Learned 8 Factory zone layouts 4503 | -9/Scraptown | Learned 16 Factory zone layouts 4503 | -9/Scraptown | Learned 16 Research zone layouts 4503 | -9/Scraptown | Learned 4 Storage zone layouts 4503 | -9/Scraptown | Learned 16 Lower Caves zone layouts 4503 | -9/Scraptown | Learned 8 Upper Caves zone layouts 4503 | -9/Scraptown | Learned 16 Upper Caves zone layouts 4503 | -9/Scraptown | Learned 20 Proximity Caves zone layouts 4503 | -9/Scraptown | Learned Research emergency access door positions 4503 | -9/Scraptown | Learned location of 1 exit from Factory 4503 | -9/Scraptown | Learned location of 3 exits from Upper Caves 4528 | -9/Scraptown | Found Deep Structural Scanner 4654 | -9/Scraptown | Found Prototype Slashing Weapon 4654 | -9/Scraptown | Identified Companion Sword 4732 | -9/Scraptown | Learned abandonware demo "ERRANTS.EXE" 4732 | -9/Scraptown | Learned abandonware demo "REBOOT5.EXE" 4759 | -9/Scraptown | Visited Research Penetration Think Tank 5324 | -9/Scraptown | Entered Cyclist Reading Room 5332 | -9/Scraptown | Learned location of Exiles (-9) 5613 | -9/Scraptown | Discovered new exit (range 13) 5942 | -9/Scraptown | Met Optimus 5942 | -9/Scraptown | Accepted into 0bPrime 6342 | -9/Scraptown | Civil war broke out across Scraptown 6348 | -9/Scraptown | Found Thermal Lance 6398 | -9/Scraptown | Weapon slot count temporarily expanded by X0-1V1 (+1) 6399 | -9/Scraptown | Discovered new exit (range 14) 6455 | -9/Scraptown | Lost 3 parts (1p1n1w) 6490 | -9/Scraptown | Entered Factory 6490 | -6/Factory | Evolved 8 slots: Propulsion x3, Utility x5 6491 | -6/Factory | Identified exit to Lower Caves 6492 | -6/Factory | Identified exit to Factory 6513 | -6/Factory | Lost 5 allies 6520 | -6/Factory | Lost 4 parts (2n1u1w) 6574 | -6/Factory | X0-1V1 whisked you away to safety 6695 | -6/Factory | Central database locked down 6788 | -6/Factory | X0-1V1 foreshadows a heat wave 6877 | -6/Factory | Ambient heat levels rising (+10) 6928 | -6/Factory | X0-1V1 sent you to a vault 6949 | -6/Factory | Found Prototype Protection 6949 | -6/Factory | Identified Hvy. Regenerative Plating 6990 | -6/Factory | Ambient heat levels rising (+10) 7083 | -6/Factory | Ambient heat levels falling (-10) 7109 | -6/Factory | Cargo convoy interrupted 7170 | -6/Factory | X0-1V1 revealed exit location to -5/Factory 7179 | -6/Factory | Ambient heat levels falling (-10) 7386 | -6/Factory | X0-1V1 revealed exit location to -5/Factory 7492 | -6/Factory | Garrison activated, responded to threat 7537 | -6/Factory | X0-1V1 activates XOMVISION 7593 | -6/Factory | X0-1V1 upgraded hostiles (x1) 7928 | -6/Factory | Spotted B-75 Beast 7982 | -6/Factory | Build established: Scavenger-Gladiator 7999 | -6/Factory | X0-1V1 mutated your Propulsion slot to Utility slot 8143 | -6/Factory | Lost 3 parts (1p1n1u) 8158 | -6/Factory | X0-1V1 sent hostile Thug (x4) 8240 | -6/Factory | First assault squad dispatched 8334 | -6/Factory | X0-1V1 activates XOMVISION 8472 | -6/Factory | Core integrity fell below 50% 8520 | -6/Factory | X0-1V1 activates XOMVISION 8589 | -6/Factory | X0-1V1 sent hostile B-48 Gladiator (x1) 8697 | -6/Factory | Entered Lower Caves 8698 | -6/Lower Caves | Identified exit to Lower Caves 8750 | -6/Lower Caves | System corruption reached 10% 8780 | -6/Lower Caves | Core integrity restored by X0-1V1 (+157) 8956 | -6/Lower Caves | Spotted B-75 Beast 8979 | -6/Lower Caves | X0-1V1 mutated your Utility slot to Power slot 8990 | -6/Lower Caves | X0-1V1 sent hostile G-47 Trooper (x3) 9049 | -6/Lower Caves | X0-1V1 sent hostile X-62 Marksman (x2) 9115 | -6/Lower Caves | Destroyed B-75 Beast 9138 | -6/Lower Caves | Lost 7 parts (2p2n3u) 9305 | -6/Lower Caves | Learned 12 Factory zone layouts 9341 | -6/Lower Caves | Encountered a Warlord checkpoint 9785 | -6/Lower Caves | Entered another Lower Caves area 9909 | -6/Lower Caves | Core integrity restored by X0-1V1 (+249) 9912 | -6/Lower Caves | X0-1V1 activates XOMVISION 9966 | -6/Lower Caves | Discovered new exit (range 17) 10357 | -6/Lower Caves | X0-1V1 activates XOMVISION 10614 | -6/Lower Caves | Entered Data Miner 10614 | -6/Data Miner | Discovered new exit (range 6) 10645 | -6/Data Miner | Met Data Miner 10678 | -6/Data Miner | Learned location of Section 7 (-3) 10683 | -6/Data Miner | Acquired the access code to Warlord's prototype stash 10709 | -6/Data Miner | Received God Mode back door access code from Data Miner 10752 | -6/Data Miner | Entered Proximity Caves 10786 | -5/Proximity Caves | Build established: Scavenger-Mutant 10846 | -5/Proximity Caves | Spotter reported a threat 10881 | -5/Proximity Caves | Learned 8 Factory zone layouts 10902 | -5/Proximity Caves | Spotter reported a threat 10933 | -5/Proximity Caves | Spotter reported a threat 10948 | -5/Proximity Caves | X0-1V1 activates XOMVISION 10986 | -5/Proximity Caves | Spotter reported a threat 11240 | -5/Proximity Caves | Spotter reported a threat 11375 | -5/Proximity Caves | Spotter reported a threat 11395 | -5/Proximity Caves | Entered Factory 11395 | -5/Factory | Evolved 2 slots: Propulsion x1, Utility x1 11396 | -5/Factory | Identified exit to Factory 11396 | -5/Factory | Identified exit to Upper Caves 11527 | -5/Factory | Lost 3 parts (1p1n1u) 11688 | -5/Factory | X0-1V1 sent you into danger 11695 | -5/Factory | Search patrols dispatched 11797 | -5/Factory | X0-1V1 sent allied H-81 Overseer (x1) 11803 | -5/Factory | Lost 7 parts (4n3u) 11836 | -5/Factory | Weapon slot count temporarily expanded by X0-1V1 (+1) 11855 | -5/Factory | Core integrity fell below 50% 11865 | -5/Factory | Core integrity fell below 20% 11868 | -5/Factory | Destroyed by S-27 Virus with Autogun Last Messages --------------- 11860_ U-05 Engineer builds a Wall. 11861_ U-05 Engineer lays Concrete. 11861_ Slug penetrates Wall. 11861_ U-05 Engineer lays Concrete. 11862_ U-05 Engineer builds a Door. 11862_ U-05 Engineer lays Concrete. 11863_ Com. Wheel destroyed. 11863_ U-05 Engineer lays Concrete. 11864_ U-05 Engineer builds a Wall. 11865_ U-05 Engineer lays Concrete. 11865_ Adv. Melee Analysis Suite destroyed. 11865_ Knocked back. 11865_ U-05 Engineer lays Concrete. 11866_ Slug penetrates Wall. 11866_ U-05 Engineer builds a Wall. 11867_ Wall collapses. 11867_ U-05 Engineer lays Concrete. 11868_ H-71 Marshal destroyed. 11868_ U-05 Engineer builds a Wall. 11868_ X0-1V1 chortles! Map ----- +----------------------------------------------------+ | ????????????????? ## """ """ """ """ """ | | ????????????????? ## | | ????????????????? ## """ """ """ """ """ ### | | ????????????????? ## """ """ """ """ """ #?? | | ?????????????????##### """ """ """ """ """ #?? | | ????????????????? #?? | | ????????????????? """ """ """ """ """ #?? | | ????????????????? """ """ """ """ """ #?? | | ????????????????? """ """ """ """ """ #?? | | ????????????????? #?? | | ????????????????? #?? | | ????????????????? #?? | | #########???????? ####+#######+#####? | | #???????? # #? | | """ #???????? + "" """"""""" #? | | """ #????????####;;######### "" #? | | "S #?????????# # "T """"""""" #? | | """ [#????????## # "" #? | | "" #????????#; u # "" """"""""" #? | | ##########; # #? | | ! # ; #[ """"""""" #? | | # ; #!%= #? | | ##+##+### ] ; #"################? | | ?# + # u !!! # #???????? #?? | | ##### ### """ # % =%=! ##????????? #?? | | # #?# """ "Y" #u %%]*@!] [##?????????"""" #?? | | # #?# """ """ # %*[[!! %##?????????"""" #?? | | # #?# ; u!=sss!==!##?????????"""" #?? | | "" # #######+#####;+#%s;#;#+#####????????"""" #?? | | "" # ! =s!! [ +???????"""" #?? | | "" # % #???????"""" #?? | | "" + *! + ?????? ### | | # ! #### ????? # | | "" # A Y #?????????? ### | | "" # ####;;### #?????????? #?? | | "" # #?? ?# #??????????######## | | "" # "" " #? !![ ?# ! %"????????? | | # ""T"" # !![ ?+ ???????? | | ##### """ # ![[ ?# ??????? | | ????# # ?# ??????? """ | | ????# # ! = ?# ?????? """ | | ????# ######### ####?#########+??????? """ | | ????# ################???????????????? | | ????# # #???????????????? | | ????# # #???????????????????????? | | ????# # * ! #???????????????????????? | | ????# + ]#???????????????????????? | | ????# # #???????????????????????? | | ????# # #???????????????????????? | | ??### ################???????????????????????? | +----------------------------------------------------+ Best States ------------- Heat Dissipation 109 Coolant Potential 80 Energy Generation 32 Energy Capacity 2010 Matter Stores 1000 Matter Capacity 1000 Sight Range 23 Terrain Scan Density 110 Jamming Range 12 Armor Coverage 900 Resistance: TH 15 Phase Shifting 5 Evasion (%) 65 Melee Accuracy 16 Recoil Reduction 2 Trap Extractor Capacity 6 Item Schematics ----------------- Combat Drone Bay | -6/Data Miner | Free Lgt. Regenerative Plating | -6/Data Miner | Free Cld. Gravmag System | -6/Data Miner | Free Exp. Heat Sink | -6/Data Miner | Free Hvy. Proton Cannon | -6/Data Miner | Free Hvy. Siege Treads | -6/Data Miner | Free Adv. Actuator Array | -6/Data Miner | Free Micro-nuke Launcher | -6/Data Miner | Free Adv. Component Analysis Suite | -6/Data Miner | Free Antigrav Array | -6/Data Miner | Free Robot Schematics ------------------ A-15 Conveyor | -6/Data Miner | Free B-60 Warrior | -6/Data Miner | Free G-50 Soldier | -6/Data Miner | Free E-15 Imp | -6/Data Miner | Free A-27 Freighter | -6/Data Miner | Free H-66 Slayer | -6/Data Miner | Free Fabricated ------------ Nothing Repaired ---------- Nothing Studied --------- Imp. Proton Missile Launcher | -6/Factory | Hacked Lgt. Deuterium Engine | -6/Factory | Hacked Flexi-carbon Leg | -5/Factory | Hacked Alien Tech Used ----------------- None Achievements -------------- SUBSUB Challenges ------------ None Game ------ Seed PotentialComponentCasing Manual? 0 Play Time 01:14:00 Cumulative 1678.2 hours Start 2026.07.01 @ 21:18:23 End 2026.07.03 @ 13:16:39 Sessions 3 Manual Loads 0 Difficulty Rogue Special Mode None Game No. 1192 Rogue 1152 Adventurer 40 Explorer 0 Win Type - Total 220 Types 104/11/74/2/2/4/16/2/1/4 Lore% 97 Gallery% 96 Achievement% 88 Wizard Run 0 Options --------- Layout 0 ASCII 0 Keyboard 0 Movement Numpad Keybinds 0 Fullscreen 0 Font 20/Terminus Map View 76x50 Zoom Use 0% Tactical HUD 1 Map Filters NONE Filters NONE Steam 1 RUN: 7516df25-ce7d-49f3-902a-5d30d9eae472